bitfinex/quotes_SOLUSD_20250321
["timestamp","ask_amount","ask_price","bid_price","bid_amount"]
[1742592903721,7.6914,130.02,129.92,2.10733916]
[1742592904408,7.6914,130.02,129.94,1.3967]
[1742592904723,7.6914,130.02,129.95,6.84]
[1742592904901,20.0,130.01,129.95,14.5347]
[1742592906822,27.7214,130.02,129.95,14.5347]
[1742592909331,27.7214,130.02,129.96,6.6449]
[1742592910212,27.7214,130.02,129.96,14.3393]
[1742592910918,27.7214,130.02,129.97,6.82]
[1742592911119,7.7214,130.02,129.97,6.82]
[1742592911624,0.03,130.02,129.97,6.82]
[1742592912122,0.03,130.02,129.97,14.514]
[1742592914805,0.03,130.02,129.98,1.68102314]
[1742592915011,0.03,130.02,129.99,18.64964886]
[1742592916010,0.03,130.02,130.0,7.6923]
[1742592916211,0.03,130.02,130.01,6.84]
[1742592916926,0.03,130.02,130.01,14.5317]
[1742592917829,0.03,130.02,130.01,39.883172]
[1742592918027,0.03,130.05,130.03,18.64964886]
[1742592918231,0.03,130.05,130.04,221.98964886]
[1742592918924,0.03,130.05,130.04,229.67954886]
[1742592919320,0.03,130.05,130.04,207.20806958]
[1742592920230,0.03,130.05,130.04,210.2]
[1742592921639,0.03,130.05,130.04,203.34]
[1742592921825,0.03,130.05,130.03,6.86]
[1742592930042,0.03,130.05,130.03,14.5503]
[1742592930943,0.03,130.05,130.04,6.6001]
[1742592931925,0.03,130.05,130.03,6.86]
[1742592932431,0.03,130.05,130.03,14.5503]
[1742592938145,0.03,130.05,130.04,26.623872]
[1742592938548,0.03,130.05,130.03,1.53753153]
[1742592938754,0.03,130.05,130.01,3.83525337]
[1742592939047,0.03,130.05,130.02,7.0]
[1742592942253,0.03,130.05,130.03,7.0]
[1742592951264,0.03,130.05,130.03,6.98]
[1742592953635,0.03,130.05,130.02,0.063]
[1742592953636,1.5719,130.04,130.02,0.063]
[1742592955644,7.6905,130.03,130.02,0.063]
[1742592956458,0.03,130.05,130.02,0.063]
[1742592957059,7.7193,130.05,130.02,0.063]
[1742592957565,0.03,130.05,130.02,0.063]
[1742592961567,0.03,130.05,130.02,18.71264886]
[1742592962561,0.03,130.05,130.02,0.063]
[1742592963647,0.03,130.05,130.03,6.96]
[1742592970454,0.03,130.05,130.03,14.6505]
[1742592975853,0.0001,130.05,130.04,29.81237525]
[1742592976059,18.87828594,130.17,130.08,18.933972]
[1742592976267,26.56088594,130.17,130.1,18.64964886]
[1742592976582,0.03,130.16,130.1,18.64964886]
[1742592976959,7.7129,130.16,130.1,18.64964886]
[1742592977257,0.03,130.16,130.1,18.64964886]
[1742592977958,0.03,130.16,130.1,26.33574886]
[1742592978597,0.59864628,130.16,130.1,6.98]
[1742592978954,0.03,130.16,130.1,6.98]
[1742592985252,0.03,130.16,130.1,14.6663]
[1742592987282,0.03,130.16,130.12,7.6852]
[1742592988773,0.03,130.16,130.12,13.92293211]
[1742592988974,0.03,130.16,130.12,7.6852]
[1742592992187,0.03,130.16,130.12,13.84373256]
[1742592992373,0.03,130.16,130.12,33.05673256]
[1742592993974,1.5146,130.2,130.14,26.894]
[1742592994176,1.5146,130.2,130.13,20.18603539]
[1742592994177,1.5146,130.2,130.13,9.22068653]
[1742592994382,9.1951,130.2,130.13,7.0]
[1742592995489,1.5146,130.2,130.13,7.0]
[1742592995895,9.1951,130.2,130.13,7.0]
[1742592996473,1.5146,130.2,130.14,18.64964886]
[1742592997482,1.5146,130.2,130.15,7.6834]
[1742592997985,1.5855,130.23,130.16,20.75446496]
[1742592998183,1.5855,130.23,130.17,7.02]
[1742592998569,1.5855,130.23,130.14,7.6837]
[1742592998772,1.5855,130.23,130.15,7.04]
[1742592999494,7.6793,130.22,130.15,14.7233]
[1742593000495,9.2644,130.23,130.15,14.7233]
[1742593001278,9.2644,130.23,130.16,18.64964886]
[1742593001476,9.2644,130.23,130.16,26.33194886]
[1742593002508,1.5855,130.23,130.19,20.0]
[1742593002706,1.6155,130.23,130.2,7.04]
[1742593002899,9.2942,130.23,130.2,7.04]
[1742593003882,9.2942,130.23,130.14,7.08]
[1742593004083,9.2942,130.23,130.19,3.85878459]
[1742593004407,9.2942,130.23,130.19,10.93878459]
[1742593004780,1.6155,130.23,130.19,30.93878459]
[1742593004980,1.6155,130.23,130.19,27.08]
[1742593005599,1.6155,130.23,130.19,38.56641048]
[1742593006579,9.2943,130.23,130.19,23.80561048]
[1742593006782,9.2943,130.23,130.2,7.06]
[1742593007284,0.03,130.23,130.21,0.14216157]
[1742593007701,0.03,130.23,130.22,7.6793]
[1742593007882,0.03,130.23,130.21,7.6796]
[1742593009301,18.52428459,130.29,130.25,20.28432314]
[1742593009494,1.5855,130.32,130.26,7.04]
[1742593009687,1.5855,130.32,130.27,7.6763]
[1742593010409,9.2589,130.32,130.26,210.06]
[1742593010579,1.5855,130.32,130.26,210.06]
[1742593010778,1.5855,130.32,130.26,217.7369]
[1742593011293,9.2592,130.32,130.26,210.06]
[1742593012713,1.5855,130.32,130.26,210.06]
[1742593012891,9.2589,130.32,130.26,210.04]
[1742593013095,9.2589,130.32,130.26,210.06]
[1742593013311,28.4424,130.32,130.26,210.06]
[1742593015411,65.2239,130.32,130.26,7.04]
[1742593015589,3.10633796,130.31,130.26,7.04]
[1742593016682,26.8713,130.25,130.16,0.063]
[1742593016884,26.8713,130.25,130.16,7.123]
[1742593017706,1.5529,130.24,130.16,7.123]
[1742593018311,6.5403,130.23,130.16,7.123]
[1742593018894,26.8775,130.22,130.16,7.123]
[1742593019791,1.5529,130.21,130.16,0.063]
[1742593021312,7.6804,130.2,130.16,0.063]
[1742593026219,7.6804,130.2,130.16,7.143]
[1742593028535,7.6816,130.18,130.16,0.063]
[1742593029807,7.6816,130.18,130.12,0.063]
[1742593029808,1.5238,130.17,130.12,0.063]
[1742593030013,1.5238,130.17,130.13,7.06]
[1742593031182,7.6828,130.16,130.13,7.06]
[1742593033022,1.5238,130.17,130.13,14.7445]
[1742593034135,1.5238,130.17,130.13,33.956]
[1742593035046,7.6805,130.2,130.13,33.956]
[1742593035747,1.6218,130.21,130.14,1.53624991]
[1742593035921,1.6218,130.21,130.15,18.64964886]
[1742593037247,19.2228,130.26,130.18,20.0]
[1742593037248,8.2748,130.25,130.18,20.0]
[1742593037454,8.2748,130.25,130.19,7.06]
[1742593037622,1.6218,130.25,130.19,7.06]
[1742593037823,1.6218,130.25,130.2,7.6804]
[1742593039231,1.6218,130.25,130.2,26.8816]
[1742593040745,1.6518,130.25,130.2,26.8816]
[1742593041549,0.03,130.25,130.2,26.8816]
[1742593041725,0.03,130.25,130.2,229.8816]
[1742593042039,0.03,130.25,130.22,0.28432314]
[1742593042249,0.03,130.25,130.23,8.59496041]
[1742593042429,0.03,130.25,130.23,7.06]
[1742593043039,0.03,130.25,130.24,7.6781]
[1742593045755,0.03,130.25,130.23,14.7386]
[1742593046545,0.03,130.25,130.24,7.04]
[1742593047740,0.03,130.25,130.21,7.6799]
[1742593047942,0.03,130.25,130.22,7.02]
[1742593048868,0.03,130.25,130.23,7.02]
[1742593049754,0.03,130.25,130.2,203.0]
[1742593049958,0.03,130.25,130.21,7.02]
[1742593050149,0.03,130.25,130.2,203.0]
[1742593050347,0.03,130.25,130.2,210.02]
[1742593051863,7.7075,130.25,130.2,210.02]
[1742593053751,1.6312,130.24,130.2,210.0]
[1742593053948,7.6787,130.23,130.2,7.0]
[1742593054760,26.8755,130.23,130.2,7.0]
[1742593055337,26.8755,130.23,130.18,7.0]
[1742593055758,26.8755,130.23,130.15,7.6832]
[1742593056169,28.42893796,130.23,130.16,7.0]
[1742593057043,8.46542314,130.22,130.13,7.043]
[1742593057248,1.6312,130.2,130.13,7.043]
[1742593057637,1.55343796,130.19,130.13,0.063]
[1742593057837,26.8857,130.18,130.13,0.063]
[1742593060264,19.2041,130.18,130.13,0.063]
[1742593061276,9.3118,130.2,130.13,0.063]
[1742593062161,6.5499,130.19,130.13,0.063]
[1742593062363,1.55343796,130.18,130.13,0.063]
[1742593063380,7.6822,130.17,130.13,0.063]
[1742593067051,26.8868,130.18,130.13,0.063]
[1742593068768,2.12208424,130.17,130.13,0.063]
[1742593068967,7.6828,130.16,130.13,0.063]
[1742593070156,26.8868,130.18,130.13,0.063]
[1742593070356,7.6816,130.18,130.13,0.063]
[1742593070556,8.1811,130.19,130.13,0.063]
[1742593070557,15.8624,130.19,130.14,7.04]
[1742593070775,8.1811,130.19,130.14,7.04]
[1742593070966,1.6312,130.19,130.14,7.04]
[1742593072186,9.3124,130.19,130.14,14.7238]
[1742593078083,1.6312,130.19,130.14,14.7238]
[1742593080881,9.3123,130.19,130.14,14.7238]
[1742593081073,1.6312,130.19,130.14,14.7238]
[1742593081266,9.3122,130.19,130.14,14.7238]
[1742593081586,1.6312,130.19,130.14,14.7238]
[1742593082286,9.3123,130.19,130.14,14.7238]
[1742593082480,9.3123,130.19,130.14,7.04]
[1742593082861,28.515,130.19,130.14,6.98]
[1742593083067,6.5399,130.18,130.13,7.043]
[1742593084995,1.5354,130.16,130.13,7.043]
[1742593086071,1.5354,130.16,130.13,0.063]
[1742593087188,7.6834,130.15,130.13,0.063]
[1742593087573,6.4301,130.14,130.12,0.063]
[1742593087777,6.4301,130.14,130.05,203.06]
[1742593087778,3.3731611,130.13,130.05,203.06]
[1742593088171,3.3731611,130.13,130.05,210.04]
[1742593088983,20.0,130.11,130.05,210.04]
[1742593089183,6.4301,130.08,130.03,7.043]
[1742593089673,6.4301,130.08,130.03,0.063]
[1742593091097,7.6881,130.07,130.03,0.063]
[1742593091389,9.24153796,130.07,130.03,0.063]
[1742593091597,1.5354,130.06,130.03,0.063]
[1742593092600,1.5354,130.06,129.98,6.98]
[1742593093279,7.6893,130.05,129.98,6.98]
[1742593093997,7.6893,130.05,129.98,6.96]
[1742593094190,6.4301,130.04,129.98,6.96]
[1742593094699,1.5354,130.03,129.96,7.6944]
[1742593094995,1.5354,130.03,129.96,14.6544]
[1742593095191,9.2261,130.03,129.96,14.6544]
[1742593097197,1.8377611,130.02,129.95,6.96]
[1742593097706,8.24982314,130.0,129.91,3.84470095]
[1742593097877,3.08883796,129.99,129.9,7.6978]
[1742593098735,1.5354,129.99,129.9,7.6978]
[1742593098907,1.5354,129.99,129.9,26.9433]
[1742593099207,1.5354,129.99,129.95,7.6952]
[1742593099500,1.5354,129.99,129.96,7.04]
[1742593101385,1.5354,129.99,129.96,14.7345]
[1742593104286,1.5354,129.99,129.96,7.04]
[1742593104589,1.5354,129.99,129.96,14.7346]
[1742593105011,1.5354,129.99,129.9,0.063]
[1742593105012,20.0,129.97,129.9,0.063]
[1742593105215,9.2284,129.99,129.9,0.063]
[1742593105216,1.8377611,129.98,129.9,0.063]
[1742593105403,28.4606,129.99,129.9,7.7611]
[1742593105709,28.4606,129.99,129.91,7.18]
[1742593105710,9.2284,129.99,129.91,7.18]
[1742593105912,9.2284,129.99,129.92,7.697]
[1742593106800,9.2284,129.99,129.91,14.8774]
[1742593107706,28.4606,129.99,129.91,14.8774]
[1742593108394,30.01403796,129.99,129.91,7.18]
[1742593108590,28.4606,129.99,129.91,14.8774]
[1742593109612,30.01403796,129.99,129.91,14.8774]
[1742593109909,30.01403796,129.99,129.91,7.18]
[1742593110311,30.01403796,129.99,129.91,14.8776]
[1742593110515,30.01403796,129.99,129.92,7.18]
[1742593115208,19.21829514,129.98,129.92,7.18]
[1742593115412,1.55343796,129.97,129.92,7.18]
[1742593116112,1.55343796,129.97,129.91,0.063]
[1742593117110,0.28432314,129.94,129.91,0.063]
[1742593117413,6.576,129.91,129.9,0.063]
[1742593118512,1.5134,129.9,129.88,0.063]
[1742593119416,7.6988,129.89,129.88,0.063]
[1742593122501,1.5134,129.88,129.87,0.063]
[1742593124116,7.7,129.87,129.85,0.063]
[1742593125313,9.25343796,129.87,129.85,0.063]
[1742593125913,6.576,129.86,129.85,0.063]
[1742593126116,14.56092314,129.86,129.85,0.063]
[1742593126428,14.56092314,129.86,129.84,0.063]
[1742593126429,1.5134,129.85,129.84,0.063]
[1742593129227,9.2145,129.85,129.84,0.063]
[1742593130236,9.35666157,129.85,129.84,0.063]
[1742593130832,9.49882314,129.85,129.84,0.063]
[1742593133943,9.2145,129.85,129.84,0.063]
[1742593134149,1.5134,129.85,129.84,0.063]
[1742593136433,9.2145,129.85,129.84,0.063]
[1742593137131,7.7011,129.85,129.84,0.063]
[1742593138526,27.7008,129.86,129.84,0.063]
[1742593148011,27.29732314,129.87,129.84,0.063]
[1742593148842,27.013,129.87,129.84,0.063]
[1742593149335,7.763,129.87,129.84,0.063]
[1742593150231,0.063,129.87,129.84,0.063]
[1742593152138,0.063,129.87,129.85,7.0]
[1742593154534,0.063,129.87,129.85,14.701]
[1742593154739,7.98012314,129.94,129.85,14.701]
[1742593154937,7.98012314,129.94,129.85,218.281]
[1742593155134,9.2785,129.95,129.86,18.933972]
[1742593156142,9.2785,129.95,129.87,26.95]
[1742593156920,1.583,129.95,129.87,26.95]
[1742593158761,9.2783,129.95,129.87,26.95]
[1742593159447,7.6953,129.95,129.88,18.933972]
[1742593159744,7.6953,129.95,129.89,7.0]
[1742593160038,103.03752314,129.98,129.9,7.6982]
[1742593160039,7.694,129.97,129.9,7.6982]
[1742593160221,7.694,129.97,129.9,15.4693]
[1742593160933,0.063,129.99,129.91,18.933972]
[1742593161119,0.063,129.99,129.91,24.93383876]
[1742593161940,0.063,129.99,129.92,26.9396]
[1742593162143,0.063,129.99,129.94,18.933972]
[1742593162646,0.063,129.95,129.94,18.933972]
[1742593163344,0.063,129.95,129.94,26.629772]
[1742593164434,0.063,129.95,129.94,36.22375752]
[1742593164861,0.063,129.99,129.98,19.21829514]
[1742593165157,0.063,129.99,129.98,26.21829514]
[1742593165442,0.063,130.0,129.98,32.46839514]
[1742593165648,0.063,130.0,129.99,20.7558805]
[1742593166149,0.03,130.03,130.02,20.0]
[1742593166448,0.03,130.03,130.02,261.00565648]
[1742593167245,0.03,130.03,130.02,261.28997962]
[1742593167440,0.03,130.03,130.02,262.81097962]
[1742593167830,90.72888558,130.17,130.02,262.81097962]
[1742593167831,60.58888558,130.17,130.11,19.21829514]
[1742593168025,7.6828,130.16,130.07,6.2501]
[1742593168226,1.6191,130.15,130.08,7.06]
[1742593168434,9.3028,130.15,130.08,7.06]
[1742593168924,20.0,130.14,130.08,7.06]
[1742593169126,1.6191,130.15,130.08,7.06]
[1742593169444,20.0,130.14,130.08,7.06]
[1742593170332,19.5,130.14,130.08,7.06]
[1742593171329,9.3029,130.15,130.08,7.06]
[1742593171527,19.21829514,130.14,130.08,7.06]
[1742593172142,0.28432314,130.12,130.08,7.06]
[1742593173244,7.6858,130.11,130.08,7.06]
[1742593173764,20.0,130.11,130.08,7.06]
[1742593174648,19.5,130.11,130.08,7.06]
[1742593175750,27.1858,130.11,130.08,7.06]
[1742593177153,7.6858,130.11,130.08,7.06]
[1742593177335,20.0,130.11,130.08,7.06]
[1742593179350,20.51740996,130.14,130.08,7.06]
[1742593179351,0.03,130.14,130.08,7.06]
[1742593179661,0.03,130.14,130.08,14.7475]
[1742593180434,0.03,130.14,130.09,18.933972]
[1742593182255,0.03,130.14,130.1,7.6863]
[1742593182629,0.03,130.14,130.1,33.3284]
[1742593183734,0.03,130.14,130.11,20.75491028]
[1742593183935,0.03,130.14,130.12,7.04]
[1742593184852,0.03,130.14,130.13,7.96892314]
[1742593188059,0.03,130.14,130.13,26.618572]
[1742593188456,0.03,130.14,130.13,18.79181043]
[1742593188959,0.03,130.14,130.13,0.14216157]
[1742593189257,0.03,130.14,130.13,7.82676157]
[1742593189974,0.03,130.14,130.13,7.6846]
[1742593191762,0.03,130.14,130.13,7.02]
[1742593192658,0.03,130.14,130.13,14.7046]
[1742593193659,0.03,130.14,130.13,217.8046]
[1742593195453,0.03,130.14,130.13,210.12]
[1742593195954,0.03,130.14,130.13,203.1]
[1742593198244,7.714,130.14,130.13,203.1]
[1742593200458,7.714,130.14,130.11,0.063]
[1742593200654,26.924,130.14,130.11,0.063]
[1742593201168,20.0,130.12,130.11,0.063]
[1742593203448,20.28432314,130.12,130.08,0.063]
[1742593203650,0.28432314,130.11,130.08,0.063]
[1742593203850,6.4188,130.1,130.08,0.063]
[1742593204055,7.97223796,130.1,130.08,0.063]
[1742593204658,7.6869,130.09,130.08,0.063]
[1742593205561,9.2262,130.09,130.08,0.063]
[1742593205755,9.51052314,130.09,130.08,0.0001]
[1742593205951,16.49052314,130.09,130.08,0.0001]
[1742593206152,0.28432314,130.05,129.99,203.14]
[1742593206356,1.8377611,130.05,129.99,203.14]
[1742593206562,8.8777611,130.05,129.99,203.14]
[1742593206765,26.9147,130.04,129.99,203.14]
[1742593206964,7.6895,130.05,130.0,7.06]
[1742593207673,19.2191,130.08,130.0,7.06]
[1742593208051,7.6875,130.08,130.0,7.06]
[1742593208669,7.6875,130.08,130.0,14.7518]
[1742593209776,9.24093796,130.08,130.0,14.7518]
[1742593210275,7.6875,130.08,130.0,14.7518]
[1742593210575,7.6875,130.08,130.0,14.8148]
[1742593210962,26.9064,130.08,130.0,14.8148]
[1742593213277,26.9064,130.08,130.0,7.123]
[1742593215967,26.9064,130.08,130.0,14.8151]
[1742593217065,26.9064,130.08,130.0,7.7551]
[1742593217271,46.913,130.05,130.0,0.063]
[1742593217570,0.28432314,130.04,130.0,0.063]
[1742593217962,1.561,130.03,130.0,0.063]
[1742593218160,3.11443796,130.03,130.0,0.063]
[1742593218677,7.6911,130.02,130.0,0.063]
[1742593220485,7.6899,130.04,130.0,0.063]
[1742593221667,19.2235,130.05,130.0,0.063]
[1742593227006,19.2235,130.05,130.01,7.04]
[1742593230694,0.28432314,130.04,130.0,0.063]
[1742593231792,46.9168,130.03,130.0,0.063]
[1742593232197,0.28432314,130.02,130.0,0.063]
[1742593232978,7.6917,130.01,130.0,0.063]
[1742593235378,26.9209,130.01,129.97,0.063]
[1742593235794,28.4489,130.01,129.97,0.063]
[1742593236787,20.0,129.98,129.97,0.063]
[1742593237298,27.6934,129.98,129.97,0.063]
[1742593246103,29.5311611,129.98,129.97,0.0001]
[1742593246280,48.4651331,129.98,129.97,0.0001]
[1742593247186,153.4751331,129.98,129.97,0.0001]
[1742593247388,0.28432314,129.93,129.87,6.3084]
[1742593247608,20.28432314,129.93,129.87,13.2484]
[1742593248010,20.28432314,129.93,129.87,7.003]
[1742593248011,26.9396,129.92,129.87,7.003]
[1742593249106,26.9396,129.92,129.87,0.063]
[1742593249888,0.28432314,129.9,129.87,0.063]
[1742593250215,7.6988,129.89,129.87,0.063]
[1742593251909,27.98372314,129.88,129.87,0.063]
[1742593257210,34.90372314,129.88,129.87,0.063]
[1742593257924,53.83769514,129.88,129.87,0.063]
[1742593258224,55.49019514,129.88,129.87,0.063]
[1742593258402,55.49019514,129.88,129.87,0.0001]
[1742593261119,53.83769514,129.88,129.87,0.0001]
[1742593261300,27.98372314,129.88,129.87,0.0001]
[1742593263113,7.6991,129.89,129.87,0.0001]
[1742593263316,0.28432314,129.9,129.87,0.0001]
[1742593263498,20.0,129.88,129.87,0.0001]
[1742593264205,1.5929,129.96,129.87,0.0001]
[1742593264416,0.28432314,129.95,129.87,0.0001]
[1742593264718,20.0,129.93,129.87,0.0001]
[1742593265015,20.0,129.93,129.87,7.7001]
[1742593265208,20.0,129.91,129.87,7.7001]
[1742593266217,0.28432314,129.92,129.87,0.0001]
[1742593266923,20.0,129.9,129.87,0.0001]
[1742593267299,7.6981,129.91,129.87,0.0001]
[1742593271518,0.28432314,129.9,129.87,0.0001]
[1742593271717,20.0,129.88,129.87,0.0001]
[1742593272625,20.28432314,129.88,129.87,0.0001]
[1742593272807,27.98372314,129.88,129.87,0.0001]
[1742593273009,46.91769514,129.88,129.87,0.0001]
[1742593273313,48.4711331,129.88,129.87,0.0001]
[1742593276825,29.5371611,129.88,129.87,0.0001]
[1742593277026,6.9,129.89,129.87,0.0001]
[1742593277206,7.699,129.89,129.87,0.0001]
[1742593278132,7.6984,129.9,129.87,0.0001]
[1742593278317,3.14633796,129.94,129.87,6.9001]
[1742593278318,7.6961,129.94,129.87,6.9001]
[1742593278517,7.6955,129.95,129.87,6.9001]
[1742593278826,0.28432314,129.97,129.87,6.9001]
[1742593279030,20.0,129.95,129.87,6.9001]
[1742593279333,20.0,129.95,129.87,210.4601]
[1742593279529,20.0,129.94,129.88,26.9479]
[1742593279715,7.97882314,129.97,129.88,26.9479]
[1742593279915,7.6945,129.97,129.9,7.9047]
[1742593280111,0.063,129.98,129.91,6.92]
[1742593281217,0.063,129.97,129.91,6.92]
[1742593281808,20.063,129.97,129.92,6.92]
[1742593282016,20.28432314,129.96,129.92,6.92]
[1742593283737,20.0,129.96,129.92,6.92]
[1742593284521,27.6949,129.96,129.92,6.92]
[1742593284721,0.063,129.97,129.92,6.92]
[1742593284722,27.7573,129.97,129.92,6.92]
[1742593286817,7.7573,129.97,129.92,6.92]
[1742593287218,7.7573,129.97,129.92,14.6168]
[1742593288038,0.063,129.97,129.92,14.6168]
[1742593288422,0.063,129.97,129.92,14.6169]
[1742593289741,0.063,129.97,129.92,6.92]
[1742593290246,0.063,129.97,129.92,14.617]
[1742593290542,0.063,129.97,129.92,6.92]
[1742593290925,0.063,129.97,129.9,211.3647]
[1742593290926,20.0,129.96,129.9,211.3647]
[1742593291133,20.0,129.96,129.91,6.9]
[1742593291547,0.20516157,129.97,129.91,6.9]
[1742593291838,0.20516157,129.97,129.9,218.2647]
[1742593292042,0.20516157,129.97,129.9,209.8266]
[1742593292338,65.4045,129.96,129.9,6.3666]
[1742593293633,0.28432314,129.95,129.9,6.3666]
[1742593294147,27.22182314,129.93,129.87,1.5382]
[1742593294718,27.22182314,129.93,129.87,0.0001]
[1742593294918,0.28432314,129.91,129.87,0.0001]
[1742593295547,0.28432314,129.89,129.87,0.0001]
[1742593296240,7.6994,129.88,129.87,0.0001]
[1742593300046,26.9444,129.9,129.87,0.0001]
[1742593304059,7.6976,129.91,129.87,0.0001]
[1742593307753,7.697,129.92,129.87,0.0001]
[1742593307959,7.6958,129.94,129.88,6.6237]
[1742593309161,7.97952314,129.95,129.88,14.3225]
[1742593311952,27.21762314,129.95,129.88,14.3225]
[1742593312865,27.21762314,129.95,129.88,6.6237]
[1742593313758,20.0,129.92,129.88,6.6237]
[1742593314656,7.6976,129.91,129.88,6.6237]
[1742593315060,26.9416,129.91,129.87,0.0001]
[1742593316166,19.244,129.91,129.87,0.0001]
[1742593321768,26.9416,129.91,129.87,0.0001]
[1742593322148,0.28432314,129.9,129.87,0.0001]
[1742593323257,20.0,129.88,129.87,0.0001]
[1742593324049,27.6994,129.88,129.87,0.0001]
[1742593333271,20.0,129.88,129.87,0.0001]
[1742593333574,7.6984,129.9,129.87,0.0001]
[1742593333776,7.7609,129.91,129.87,0.0001]
[1742593334379,0.063,129.91,129.87,0.0001]
[1742593336086,0.063,129.91,129.87,7.7001]
[1742593336390,0.063,129.91,129.87,14.1661]
[1742593336565,0.063,129.91,129.87,33.4161]
[1742593336765,0.063,129.91,129.89,1.5861]
[1742593336970,0.063,129.91,129.9,6.78]
[1742593337782,0.063,129.91,129.9,14.4782]
[1742593354002,0.063,129.91,129.9,6.78]
[1742593358004,0.063,129.91,129.89,8.4862]
[1742593359089,0.063,129.91,129.89,15.2262]
[1742593359818,0.063,129.91,129.89,6.74]
[1742593360007,0.063,129.91,129.87,0.0001]
[1742593360219,0.063,129.91,129.88,6.74]
[1742593361803,0.063,129.91,129.87,0.0001]
[1742593362005,0.063,129.91,129.87,6.7401]
[1742593363113,0.063,129.91,129.87,0.0001]
[1742593365835,0.063,129.91,129.87,6.7201]
[1742593377817,0.063,129.91,129.87,0.0001]
[1742593378042,0.063,129.91,129.87,6.6801]
[1742593379131,0.34732314,129.91,129.87,0.0001]
[1742593381128,26.9437,129.9,129.87,0.0001]
[1742593382652,1.5023,129.89,129.87,0.0001]
[1742593383234,7.6994,129.88,129.87,0.0001]
[1742593394443,1.5023,129.89,129.87,0.0001]
[1742593394444,7.6991,129.89,129.87,0.0001]
[1742593396228,7.7606,129.91,129.87,0.0001]
[1742593398123,0.063,129.91,129.88,6.68]
[1742593398328,0.063,129.91,129.9,20.0]
[1742593398544,0.063,129.91,129.88,6.68]
[1742593399537,0.063,129.91,129.89,6.68]
[1742593400234,0.063,129.91,129.89,14.3782]
[1742593408152,0.063,129.91,129.9,18.933972]
[1742593409957,0.063,129.91,129.9,26.632172]
[1742593416063,0.063,129.91,129.89,14.3785]
[1742593416248,0.063,129.91,129.87,0.0001]
[1742593418265,7.7606,129.91,129.87,0.0001]
[1742593423864,27.0046,129.91,129.87,0.0001]
[1742593432881,7.6988,129.89,129.87,0.0001]
[1742593433259,1.6177,129.9,129.87,0.0001]
[1742593433872,0.063,129.91,129.87,0.0001]
[1742593434679,7.7606,129.91,129.87,0.0001]
[1742593435872,9.316,129.9,129.87,0.0001]
[1742593440361,1.6177,129.9,129.87,0.0001]
[1742593440566,9.316,129.9,129.87,0.0001]
[1742593441078,0.063,129.91,129.87,26.6801]
[1742593441272,0.063,129.91,129.88,19.21829514]
[1742593442273,0.063,129.91,129.89,7.6988]
[1742593442577,0.063,129.91,129.9,19.21829514]
[1742593442974,0.063,129.91,129.9,25.62739514]
[1742593443362,0.063,129.91,129.9,26.57409514]